{"text_format":"3","workbook":"xlsx","n_sheets":4,"sheets":["종합","강사","겸임교수","초빙객원교수"],"not_rendered":{"defined_names":8},"read":"whole","date_system":"1900"}

{"sheet":"종합","index":0,"n_rows":78,"n_cols":12,"rows_kept":78,"merged":[[0,0,0,11]]}
["2026학년도 1학기 \"비전임교원\" 채용분야(2차) 상세 현황"]
["No.","구분","대학(원)","학부(과)","채용분야","주간 시수","강사","겸임교수","초빙객원교수","총 주간 시수","면접 / 교육계획서 대체","비고"]
[1,"강사","IT융합대학","AI∙SW학부(모빌리티SW전공)","기초프로그래밍",4,1,null,null,{"$f":"F3*SUM(G3:I3)","v":4},"면접/2월 10일(화) 10:00"]
[2,"겸임교수","IT융합대학","AI∙SW학부(인공지능공학전공)","프로그래밍언어 및 실습",8,null,1,null,{"$f":"F4*SUM(G4:I4)","v":8},"교육계획서 대체"]
[3,"초빙객원교수","IT융합대학","AI∙SW학부(컴퓨터공학전공)","기초프로그래밍/컴퓨터 비전",7,null,null,1,7,"교육계획서 대체"]
[4,"초빙객원교수","IT융합대학","AI∙SW학부(컴퓨터공학전공)","기초프로그래밍",8,null,null,1,8,"교육계획서 대체"]
[5,"초빙객원교수","IT융합대학","AI∙SW학부(컴퓨터공학전공)","4차산업 신기술개론/빅데이터 프로그래밍",7,null,null,1,7,"교육계획서 대체"]
[6,"강사","경상대학","경영학부","경영통계학",6,1,null,null,6,"교육계획서 대체"]
[7,"겸임교수","경상대학","경영학부","경영관리실무",3,null,1,null,3,"교육계획서 대체"]
[8,"겸임교수","경상대학","경제학과","산업조직론",3,null,1,null,3,"교육계획서 대체"]
[9,"초빙객원교수","경상대학","무역학과","무역상무",6,null,null,1,6,"교육계획서 대체"]
[10,"겸임교수","공과대학","항공우주공학과","신입생세미나",1,null,1,null,1,"교육계획서 대체"]
[11,"초빙객원교수","공과대학","건축학과(5년제)","건축설계3",10,null,null,1,10,"교육계획서 대체"]
[12,"초빙객원교수","공과대학","건축학과(5년제)","건축설계5",10,null,null,1,10,"교육계획서 대체"]
[13,"초빙객원교수","공과대학","산업공학과","공학수학(공학수학1∙2)",3,null,null,1,3,"교육계획서 대체"]
[14,"초빙객원교수","교무처","창의교육팀","스마트AI부동산융합전공",3,null,null,1,3,"교육계획서 대체"]
[15,"강사","글로벌인문대학","K-컬처공연∙기획학과","움직임과 퍼포먼스",3,1,null,null,3,"교육계획서 대체"]
[16,"강사","글로벌인문대학","K-컬처공연∙기획학과","1인크리에이터와 유튜브",3,1,null,null,3,"교육계획서 대체"]
[17,"강사","글로벌인문대학","역사문화학과","서양문명의 역사(01)",3,1,null,null,3,"교육계획서 대체"]
[18,"강사","글로벌인문대학","역사문화학과","서양고중세사/서양문명의 역사(02)",6,1,null,null,6,"교육계획서 대체"]
[19,"강사","글로벌인문대학","역사문화학과","동아시아역사의 이해(01,02)",6,1,null,null,6,"교육계획서 대체"]
[20,"강사","글로벌인문대학","유럽언어문화학부(스페인중남미전공)","스페인어학(스페인어 실습,시사 스페인어)",6,1,null,null,6,"교육계획서 대체"]
[21,"초빙객원교수","글로벌인문대학","역사문화학과","한국고중세사",3,null,null,1,3,"교육계획서 대체"]
[22,"겸임교수","미래사회융합대학","미래융합학부","SNS경영실무/비즈니스라이브커머스실무",6,null,1,null,6,"교육계획서 대체"]
[23,"겸임교수","미래사회융합대학","미래융합학부","프랜차이즈창업실무",3,null,1,null,3,"교육계획서 대체"]
[24,"겸임교수","미래사회융합대학","미래융합학부","재무회계",3,null,1,null,3,"교육계획서 대체"]
[25,"겸임교수","미래사회융합대학","미래융합학부","소비자행동론",3,null,1,null,3,"교육계획서 대체"]
[26,"겸임교수","미래사회융합대학","미래융합학부","금융시장론",3,null,1,null,3,"교육계획서 대체"]
[27,"겸임교수","미래사회융합대학","미래융합학부","기업재무론",3,null,1,null,3,"교육계획서 대체"]
[28,"겸임교수","미래사회융합대학","미래융합학부","클라우드컴퓨팅응용",3,null,1,null,3,"교육계획서 대체"]
[29,"겸임교수","미래사회융합대학","미래융합학부","ICT융합기술활용2",3,null,1,null,3,"교육계획서 대체"]
[30,"겸임교수","미래사회융합대학","미래융합학부","기후변화와 에너지",3,null,1,null,3,"교육계획서 대체"]
[31,"겸임교수","미래사회융합대학","미래융합학부","피부미용관리실습",3,null,1,null,3,"교육계획서 대체","사회복지사자격증 필수"]
[32,"겸임교수","미래사회융합대학","미래융합학부","부동산과 풍수지리 1,2",6,null,1,null,6,"교육계획서 대체"]
[33,"초빙객원교수","미래사회융합대학","미래융합학부","프로그래밍언어/인공지능기초",6,null,null,1,6,"교육계획서 대체"]
[34,"초빙객원교수","미래사회융합대학","미래융합학부","소방점검실무종합설계",3,null,null,1,3,"교육계획서 대체"]
[35,"초빙객원교수","미래사회융합대학","미래융합학부","메이크업 및 색채학/뷰티헬스케어산업경영론",6,null,null,1,6,"교육계획서 대체","사회복지사자격증 필수"]
[36,"초빙객원교수","미래사회융합대학","미래융합학부","부동산비즈니스",3,null,null,1,3,"교육계획서 대체"]
[37,"초빙객원교수","미래사회융합대학","미래융합학부","부동산개발론/부동산정책실무",6,null,null,1,6,"교육계획서 대체"]
[38,"초빙객원교수","미래사회융합대학","미래융합학부","부동산공법 1,2",6,null,null,1,6,"교육계획서 대체"]
[39,"강사","미래인재융합대학원","디자인학과","집단미술치료/ 미술치료매체와 표현기법1",3,1,null,null,3,"교육계획서 대체"]
[40,"겸임교수","미래인재융합대학원","미용향장학과","기능성화장품세미나",3,null,1,null,3,"교육계획서 대체"]
[41,"겸임교수","미래인재융합대학원","중독재활복지학과","중독과 트라우마",3,null,1,null,3,"교육계획서 대체"]
[42,"겸임교수","미래인재융합대학원","중독재활복지학과","알콜중독과 치료",3,null,1,null,3,"교육계획서 대체"]
[43,"초빙객원교수","미래인재융합대학원","사회복지학과","노인복지론",3,null,null,1,3,"교육계획서 대체"]
[44,"초빙객원교수","미래인재융합대학원","중독재활복지학과","중독학총론",3,null,null,1,3,"교육계획서 대체"]
[45,"강사","미술대학","디자인공학과","디자인재료와 생산공정",3,1,null,null,3,"교육계획서 대체"]
[46,"초빙객원교수","미술대학","만화 애니메이션학과","인체모델링/만화애니메이션창작4(02)",5,null,null,1,5,"교육계획서 대체"]
[47,"초빙객원교수","미술대학","미술학부(서양화전공)","회화표현기법연구1",3,null,null,1,3,"교육계획서 대체"]
[48,"초빙객원교수","미술대학","시각디자인학과","비주얼아이덴티티1/시각디자인스튜디오3캡스톤디자인",8,null,null,1,8,"교육계획서 대체"]
[49,"강사","법사회대학","미디어커뮤니케이션학과","미디어와사회(02)",3,1,null,null,3,"교육계획서 대체"]
[50,"초빙객원교수","법사회대학","미디어커뮤니케이션학과","뉴스 컨텐츠 기획 및 제작실습",3,null,null,1,3,"교육계획서 대체"]
[51,"강사","사범대학","국어교육과","교직(학교현장실습)",2,1,null,null,2,"교육계획서 대체"]
[52,"강사","사범대학","음악교육과","국악사 및 국악실기(단소와 소금)",4,1,null,null,4,"온라인면접(단소와 소금 실기시연 포함),  교육계획서지참/2월 10일(화) 11:00\n","학부 국악관악 전공자에 한함"]
[53,"강사","사범대학","음악교육과","전공실기(피아노)",4,1,null,null,4,"온라인면접, 연주영상웹주소 제출/\n2월 10일(화) 11:00\n","최근 5년이내 연주영상 유투브 웹주소 제출 필수"]
[54,"초빙객원교수","사범대학","교육학과","교육행정",9,null,null,1,9,"교육계획서 대체"]
[55,"초빙객원교수","사범대학","음악교육과","작곡 및 음악이론",7,null,null,1,7,"온라인면접, 교육계획서지참/\n2월 10일(화) 11:00"]
[56,"강사","약학대학","약학과(2+4년제)","의약품제조 및 품질관리학실험",0.5,1,null,null,0.5,"교육계획서 대체"]
[57,"겸임교수","약학대학","약학과(2+4년제)","약물학1",3,null,1,null,3,"교육계획서 대체"]
[58,"겸임교수","연구처","창업성장지원팀","창업융합전공(창업&국가지원사업활용코칭/(웰에이징)스타트업경영실무)",6,null,1,null,6,"교육계획서 대체"]
[59,"초빙객원교수","의과대학","간호학과","통합간호실습2",3.6,null,null,2,7.2,"교육계획서 대체"]
[60,"강사","일반대학원","교육학과","연구방법론",3,1,null,null,3,"교육계획서 대체"]
[61,"강사","일반대학원","수화언어학과","한국수어실제(초∙중∙고급한국수어의 실제)",3,1,null,null,3,"교육계획서 대체","수어통역사 및 수어교원자격증 필수"]
[62,"겸임교수","일반대학원","국제티앤커피문화학과","2026-1학기 일본차문화사/ 2026-2학기 세계도자문화사",3,null,1,null,3,"교육계획서 대체"]
[63,"겸임교수","일반대학원","식품영양학과(임상영양전공)","임상영양실습(임상영양실습Ⅰ, 임상영양실습Ⅱ)",4,null,1,null,4,"교육계획서 대체"]
[64,"초빙객원교수","일반대학원","문화학과","문화예술경영",3,null,null,1,3,"교육계획서 대체"]
[65,"초빙객원교수","일반대학원","문화학과","연구방법론과 연구윤리",3,null,null,1,3,"교육계획서 대체"]
[66,"강사","자연과학∙공공보건안전대학","언어치료학과","특수교육학원론",3,1,null,null,{"$f":"F68*SUM(G68:I68)","v":3},"교육계획서 대체","1급 언어재활사 자격증 소지자 및 언어재활 현장근무 경력자"]
[67,"초빙객원교수","자연과학∙공공보건안전대학","융합수리과학부","일반물리학1/일반물리학/기초물리/일반물리학실험1/일반물리학실험",9,null,null,2,18,"면접/2월 10일(화) 13:00"]
[68,"강사","체육대학","공연예술무용과","문화행사의 기획",1,1,null,null,1,"교육계획서 대체"]
[69,"강사","체육대학","공연예술무용과","발레핏필라테스",2,1,null,null,2,"교육계획서 대체"]
[70,"강사","체육대학","체육학과","(융합)AI스포츠경기분석",2,1,null,null,2,"교육계획서 대체"]
[71,"강사","체육대학","체육학과","트레이닝방법론",2,1,null,null,2,"교육계획서 대체"]
[72,"강사","체육대학","태권도학과","육상1",3,1,null,null,3,"교육계획서 대체"]
[73,"강사","체육대학","태권도학과","골프1",1.5,1,null,null,1.5,"교육계획서 대체"]
[74,"강사","체육대학","태권도학과","태권도공연영상편집/태권도시범공연제작발표",4,1,null,null,4,"교육계획서 대체"]
[75,"초빙객원교수","체육대학","공연예술무용과","현대무용1/커뮤니티활동가",4,null,null,1,4,"교육계획서 대체"]
[{"$nulls":5},{"$f":"SUM(F3:F77)","v":310.6},{"$f":"SUM(G3:G77)","v":25},22,30,323.2]

{"sheet":"강사","index":1,"n_rows":28,"n_cols":9,"rows_kept":28,"merged":[[0,0,0,8]]}
["2026학년도 1학기 \"강사\" 채용분야(2차) 상세 현황"]
["No.","구분","대학(원)","학부(과)","채용분야","채용인원","총 주간 시수","면접 / 교육계획서 대체","비고"]
[1,"강사","IT융합대학","AI∙SW학부(모빌리티SW전공)","기초프로그래밍",1,4,"2026.02.10.(화) 10:00/\n미래모빌리티실험실습동 B1101호"]
[2,"강사","경상대학","경영학부","경영통계학",1,6,"교육계획서 대체"]
[3,"강사","글로벌인문대학","역사문화학과","서양문명의 역사(01)",1,3,"교육계획서 대체"]
[4,"강사","글로벌인문대학","역사문화학과","서양고중세사/서양문명의 역사(02)",1,6,"교육계획서 대체"]
[5,"강사","글로벌인문대학","역사문화학과","동아시아역사의 이해(01,02)",1,6,"교육계획서 대체"]
[6,"강사","글로벌인문대학","유럽언어문화학부(스페인중남미전공)","스페인어학(스페인어 실습,시사 스페인어)",1,6,"교육계획서 대체"]
[7,"강사","글로벌인문대학","K-컬처공연∙기획학과","움직임과 퍼포먼스",1,3,"교육계획서 대체"]
[8,"강사","글로벌인문대학","K-컬처공연∙기획학과","1인크리에이터와 유튜브",1,3,"교육계획서 대체"]
[9,"강사","미래인재융합대학원","디자인학과","집단미술치료/ 미술치료매체와 표현기법1",1,3,"교육계획서 대체"]
[10,"강사","미술대학","디자인공학과","디자인재료와 생산공정",1,3,"교육계획서 대체"]
[11,"강사","법사회대학","미디어커뮤니케이션학과","미디어와사회(02)",1,3,"교육계획서 대체"]
[12,"강사","사범대학","국어교육과","교직(학교현장실습)",1,2,"교육계획서 대체"]
[13,"강사","사범대학","음악교육과","국악사 및 국악실기(단소와 소금)",1,4,"2026.02.10.(화) 11:00 \n온라인면접(단소와 소금 실기시연 포함), 교육계획서 지참 ","학부 국악관악 전공자에 한함"]
[14,"강사","사범대학","음악교육과","전공실기(피아노)",1,4,"2026.02.10.(화) 11:00\n온라인면접, 연주영상 웹주소 제출","*전공실기부분 공통사항: 최근 5년 이내의 연주 영상 유투브 웹주소 이메일(ptj4935@chosun.ac.kr) 제출 필수\n(담당자 연락처: 062-230-7303)"]
[15,"강사","약학대학","약학과(2+4년제)","의약품제조 및 품질관리학실험",1,0.5,"교육계획서 대체"]
[16,"강사","일반대학원","수화언어학과","한국수어실제(초∙중∙고급한국수어의 실제)",1,3,"교육계획서 대체","수어통역사 및 수어교원자격증 필수"]
[17,"강사","일반대학원","교육학과","연구방법론",1,3,"교육계획서 대체"]
[18,"강사","자연과학∙공공보건안전대학","언어치료학과","특수교육학원론",1,3,"교육계획서 대체","1급 언어재활사 자격증 소지자 및 언어재활 현장근무 경력자"]
[19,"강사","체육대학","공연예술무용과","문화행사의 기획",1,1,"교육계획서 대체"]
[20,"강사","체육대학","공연예술무용과","발레핏필라테스",1,2,"교육계획서 대체"]
[21,"강사","체육대학","체육학과","(융합)AI스포츠경기분석",1,2,"교육계획서 대체"]
[22,"강사","체육대학","체육학과","트레이닝방법론",1,2,"교육계획서 대체"]
[23,"강사","체육대학","태권도학과","육상1",1,3,"교육계획서 대체"]
[24,"강사","체육대학","태권도학과","골프1",1,1.5,"교육계획서 대체"]
[25,"강사","체육대학","태권도학과","태권도공연영상편집/태권도시범공연제작발표",1,4,"교육계획서 대체"]
[{"$nulls":5},{"$f":"SUM(F3:F27)","v":25},{"$f":"SUM(G3:G27)","v":81}]

{"sheet":"겸임교수","index":2,"n_rows":25,"n_cols":9,"rows_kept":25,"merged":[[0,0,0,8]]}
["2026학년도 1학기 \"겸임교수\" 채용분야(2차) 상세 현황"]
["No.","구분","대학(원)","학부(과)","채용분야","채용인원","총 주간 시수","면접 / 교육계획서 대체","비고"]
[1,"겸임교수","IT융합대학","AI∙SW학부(인공지능공학전공)","프로그래밍언어 및 실습",1,8,"교육계획서 대체"]
[2,"겸임교수","경상대학","경영학부","경영관리실무",1,3,"교육계획서 대체"]
[3,"겸임교수","경상대학","경제학과","산업조직론",1,3,"교육계획서 대체"]
[4,"겸임교수","공과대학","항공우주공학과","신입생세미나",1,1,"교육계획서 대체"]
[5,"겸임교수","미래사회융합대학","미래융합학부","SNS경영실무/비즈니스라이브커머스실무",1,6,"교육계획서 대체"]
[6,"겸임교수","미래사회융합대학","미래융합학부","프랜차이즈창업실무",1,3,"교육계획서 대체"]
[7,"겸임교수","미래사회융합대학","미래융합학부","재무회계",1,3,"교육계획서 대체"]
[8,"겸임교수","미래사회융합대학","미래융합학부","소비자행동론",1,3,"교육계획서 대체"]
[9,"겸임교수","미래사회융합대학","미래융합학부","금융시장론",1,3,"교육계획서 대체"]
[10,"겸임교수","미래사회융합대학","미래융합학부","기업재무론",1,3,"교육계획서 대체"]
[11,"겸임교수","미래사회융합대학","미래융합학부","클라우드컴퓨팅응용",1,3,"교육계획서 대체"]
[12,"겸임교수","미래사회융합대학","미래융합학부","ICT융합기술활용2",1,3,"교육계획서 대체"]
[13,"겸임교수","미래사회융합대학","미래융합학부","기후변화와 에너지",1,3,"교육계획서 대체"]
[14,"겸임교수","미래사회융합대학","미래융합학부","피부미용관리실습",1,3,"교육계획서 대체","사회복지사자격증 필수"]
[15,"겸임교수","미래사회융합대학","미래융합학부","부동산과 풍수지리 1,2",1,6,"교육계획서 대체"]
[16,"겸임교수","미래인재융합대학원","중독재활복지학과","중독과 트라우마",1,3,"교육계획서 대체"]
[17,"겸임교수","미래인재융합대학원","중독재활복지학과","알콜중독과 치료",1,3,"교육계획서 대체"]
[18,"겸임교수","미래인재융합대학원","미용향장학과","기능성화장품세미나",1,3,"교육계획서 대체"]
[19,"겸임교수","약학대학","약학과(2+4년제)","약물학1",1,3,"교육계획서 대체"]
[20,"겸임교수","연구처","창업성장지원팀","창업융합전공(창업&국가지원사업활용코칭/(웰에이징)스타트업경영실무)",1,6,"교육계획서 대체"]
[21,"겸임교수","일반대학원","국제티앤커피문화학과","2026-1학기 일본차문화사/ 2026-2학기 세계도자문화사",1,3,"교육계획서 대체"]
[22,"겸임교수","일반대학원","식품영양학과(임상영양전공)","임상영양실습(임상영양실습Ⅰ, 임상영양실습Ⅱ)",1,4,"교육계획서 대체"]
[{"$nulls":5},{"$f":"SUM(F3:F24)","v":22},{"$f":"SUM(G3:G24)","v":79}]

{"sheet":"초빙객원교수","index":3,"n_rows":31,"n_cols":9,"rows_kept":31,"merged":[[0,0,0,8]]}
["2026학년도 1학기 \"초빙객원교수\" 채용분야(2차) 상세 현황"]
["No.","구분","대학(원)","학부(과)","채용분야","채용인원","총 주간 시수","면접 / 교육계획서 대체","비고"]
[1,"초빙객원교수","IT융합대학","AI∙SW학부(컴퓨터공학전공)","기초프로그래밍/컴퓨터 비전",1,7,"교육계획서 대체"]
[2,"초빙객원교수","IT융합대학","AI∙SW학부(컴퓨터공학전공)","기초프로그래밍",1,8,"교육계획서 대체"]
[3,"초빙객원교수","IT융합대학","AI∙SW학부(컴퓨터공학전공)","4차산업 신기술개론/빅데이터 프로그래밍",1,7,"교육계획서 대체"]
[4,"초빙객원교수","경상대학","무역학과","무역상무",1,6,"교육계획서 대체"]
[5,"초빙객원교수","공과대학","건축학과(5년제)","건축설계3",1,10,"교육계획서 대체"]
[6,"초빙객원교수","공과대학","건축학과(5년제)","건축설계5",1,10,"교육계획서 대체"]
[7,"초빙객원교수","공과대학","산업공학과","공학수학(공학수학1∙2)",1,3,"교육계획서 대체"]
[8,"초빙객원교수","교무처","창의교육팀","스마트AI부동산융합전공",1,3,"교육계획서 대체"]
[9,"초빙객원교수","글로벌인문대학","역사문화학과","한국고중세사",1,3,"교육계획서 대체"]
[10,"초빙객원교수","미래사회융합대학","미래융합학부","프로그래밍언어/인공지능기초",1,6,"교육계획서 대체"]
[11,"초빙객원교수","미래사회융합대학","미래융합학부","소방점검실무종합설계",1,3,"교육계획서 대체"]
[12,"초빙객원교수","미래사회융합대학","미래융합학부","메이크업 및 색채학/뷰티헬스케어산업경영론",1,6,"교육계획서 대체","사회복지사자격증 필수"]
[13,"초빙객원교수","미래사회융합대학","미래융합학부","부동산비즈니스",1,3,"교육계획서 대체"]
[14,"초빙객원교수","미래사회융합대학","미래융합학부","부동산개발론/부동산정책실무",1,6,"교육계획서 대체"]
[15,"초빙객원교수","미래사회융합대학","미래융합학부","부동산공법 1,2",1,6,"교육계획서 대체"]
[16,"초빙객원교수","미래인재융합대학원","사회복지학과","노인복지론",1,3,"교육계획서 대체"]
[17,"초빙객원교수","미래인재융합대학원","중독재활복지학과","중독학총론",1,3,"교육계획서 대체"]
[18,"초빙객원교수","미술대학","미술학부(서양화전공)","회화표현기법연구1",1,3,"교육계획서 대체"]
[19,"초빙객원교수","미술대학","시각디자인학과","비주얼아이덴티티1/시각디자인스튜디오3캡스톤디자인",1,8,"교육계획서 대체"]
[20,"초빙객원교수","미술대학","만화 애니메이션학과","인체모델링/만화애니메이션창작4(02)",1,5,"교육계획서 대체"]
[21,"초빙객원교수","법사회대학","미디어커뮤니케이션학과","뉴스 컨텐츠 기획 및 제작실습",1,3,"교육계획서 대체"]
[22,"초빙객원교수","사범대학","교육학과","교육행정",1,9,"교육계획서 대체"]
[23,"초빙객원교수","사범대학","음악교육과","작곡 및 음악이론",1,7,"2026.02.10.(화) 11:00 \n온라인면접, 교육계획서 지참 "]
[24,"초빙객원교수","의과대학","간호학과","통합간호실습2",2,7.2,"교육계획서 대체"]
[25,"초빙객원교수","일반대학원","문화학과","문화예술경영",1,3,"교육계획서 대체"]
[26,"초빙객원교수","일반대학원","문화학과","연구방법론과 연구윤리",1,3,"교육계획서 대체"]
[27,"초빙객원교수","자연과학∙공공보건안전대학","융합수리과학부","일반물리학1/일반물리학/기초물리/일반물리학실험1/일반물리학실험",2,18,"2026.02.10.(화) 13:00/\n자연과학대학 1층 1606호(김선아실)"]
[28,"초빙객원교수","체육대학","공연예술무용과","현대무용1/커뮤니티활동가",1,4]
[{"$nulls":5},{"$f":"SUM(F3:F30)","v":30},{"$f":"SUM(G3:G30)","v":163.2}]